Cogmind - Beta 12 @@@ ROGUE MODE // 2023.05.28 @ 14:12:36 Player: Mr Goldstein Result: Destroyed by S-27 Virus with Autogun Performance ------------- Evolutions (3) 1500 Regions Visited (10) 2000 Robots Destroyed (28) 140 Value Destroyed (731) 731 Prototype IDs (12) 240 Alien Tech Used (0) 0 Bonus (862) 862 TOTAL SCORE: 5473 Bonus ------- Pacifist 470 High Alert Combat Kills 52 Follower Combat Kills 40 Met Data Miner 300 Cogmind --------- Core Integrity 0/700 Matter 300/300 Energy 98/100 System Corruption 2% Temperature Cool (12) Movement Core (50) Location -6/Proximity Caves Parts ------- > --- POWER (1) -------- (None) > --- PROPULSION (5) --- (None) > --- UTILITY (5) ------ Core Analyzer Hacking Suite System Shield > --- WEAPON (2) ------- (None) > --- INVENTORY (5) ---- Layered Light Armor Plating Long-range Tractor Beam Heavy Mace Peak State ------------ > --- POWER ------------ (None) > --- PROPULSION ------- Medium Treads Medium Treads Medium Treads Medium Treads Medium Treads > --- UTILITY ---------- Core Analyzer Core Shielding Hacking Suite System Shield > --- WEAPON ----------- Missile Launcher > --- INVENTORY -------- Layered Light Armor Plating Long-range Tractor Beam Heavy Mace [Rating: 35] Favorites ----------- Power Enhanced Nuclear Core Power Core Enhanced Nuclear Core Propulsion Medium Treads Treads Medium Treads Flight Unit VTOL Module Utility System Shield Processor Core Analyzer Hackware System Shield Protection Core Shielding Weapon Heavy Mace Launcher Missile Launcher Impact Weapon Heavy Mace Build | -11 -10 -10 -9 -9 -8 -7 -7 -7 -7 -6 ------- Run | Jun Mat Min Mat Min Mat Fac Low Low Dat Pro Slots Evolved 6 | . . . 2 . 2 2 . . . . Power . | . . . . . . . . . . . Propulsion 3 | . . . 1 . 1 1 . . . . Utility 3 | . . . 1 . 1 1 . . . . Weapon . | . . . . . . . . . . . Parts Attached 23 | . . . . . 2 12 2 4 . 3 Power 1 | . . . . . . 1 . . . . Engine . | . . . . . . . . . . . Core 1 | . . . . . . 1 . . . . Reactor . | . . . . . . . . . . . Propulsion 7 | . . . . . . 5 . 1 . 1 Treads 5 | . . . . . . 5 . . . . Leg . | . . . . . . . . . . . Wheel . | . . . . . . . . . . . Hover . | . . . . . . . . . . . Flight 2 | . . . . . . . . 1 . 1 Utility 4 | . . . . . . 3 . 1 . . Device . | . . . . . . . . . . . Storage . | . . . . . . . . . . . Processor 1 | . . . . . . . . 1 . . Hackware 2 | . . . . . . 2 . . . . Protection 1 | . . . . . . 1 . . . . Artifact . | . . . . . . . . . . . Weapon 11 | . . . . . 2 3 2 2 . 2 Energy Gun . | . . . . . . . . . . . Energy Cannon . | . . . . . . . . . . . Ballistic Gun . | . . . . . . . . . . . Ballistic Cannon . | . . . . . . . . . . . Launcher 7 | . . . . . 1 2 1 2 . 1 Special Weapon . | . . . . . . . . . . . Impact Weapon 4 | . . . . . 1 1 1 . . 1 Slashing Weapon . | . . . . . . . . . . . Piercing Weapon . | . . . . . . . . . . . Special Melee Weapon . | . . . . . . . . . . . Unidentified Prototypes 1 | . . . . . . 1 . . . . Parts Lost 4 | . . . . . . . . . . 4 Power . | . . . . . . . . . . . Propulsion 2 | . . . . . . . . . . 2 Utility 1 | . . . . . . . . . . 1 Weapon 1 | . . . . . . . . . . 1 Highest Loss Streak 2 | . . . . . . . . . . 2 To Critical Strikes . | . . . . . . . . . . . Average Slot Usage (%) 33 | . . . . . 2 34 61 56 38 35 Treads 18 | . . . . . . 28 38 25 . . Processor 1 | . . . . . . . . 4 7 7 Hackware 7 | . . . . . . 5 15 15 15 15 Protection 2 | . . . . . . . 7 7 7 5 Naked Turns 395 | . 39 12 52 51 141 100 . . . . Heaviest Build 7 | . . . . . 3 6 1 7 1 4 Greatest Support 112 | 3 3 3 3 3 3 112 3 4 4 4 Greatest Overweight (x) 2 | . . . . . . 1 . 2 . . Average Overweight (x) . | . . . . . . . . . . . Largest Inventory Capacity 5 | 5 5 5 5 5 5 5 5 5 5 5 Average Capacity 5 | 5 5 5 5 5 5 5 5 5 5 5 Most Carried 4 | . . . . . 2 3 4 4 4 3 Average Carried 2 | . . . . . 1 2 3 3 4 2 Final Capacity 5 | 5 5 5 5 5 5 5 5 5 5 5 Final Carried 4 | . . . . . 2 3 4 4 4 3 Class Distribution -------------------- 54% | Hacker-Mutant 45% | Mutant Dominant Class ---------------- Mutant | -10/Materials Mutant | -10/Mines Mutant | -9/Materials Mutant | -9/Mines Mutant | -8/Materials Mutant | -7/Factory Hacker-Mutant | -7/Lower Caves Hacker-Mutant | -7/Lower Caves Hacker-Mutant | -7/Data Miner Hacker-Mutant | -6/Proximity Caves Resources | -11 -10 -10 -9 -9 -8 -7 -7 -7 -7 -6 ----------- Run | Jun Mat Min Mat Min Mat Fac Low Low Dat Pro Matter Collected 647 | 200 . . . . 46 56 72 127 . 146 Remotely . | . . . . . . . . . . . Salvage Created 631 | . . . . . 55 245 43 64 . 224 Parts 25 | . . . . . 4 9 2 7 . 3 Haulers Intercepted 3 | . . . . . 1 2 . . . . Recyclers Shooed . | . . . . . . . . . . . Parts Field Recycled . | . . . . . . . . . . . Retrieved Matter . | . . . . . . . . . . . Parts Self-Destructed 10 | . . . . . . . 2 5 . 3 Prevented . | . . . . . . . . . . . Kills | -11 -10 -10 -9 -9 -8 -7 -7 -7 -7 -6 ------- Run | Jun Mat Min Mat Min Mat Fac Low Low Dat Pro Combat Hostiles Destroyed 22 | . . . . . 2 9 4 6 . 1 AOE 22 | . . . . . 2 9 4 6 . 1 Classes Destroyed 6 | . . . . . 2 4 . . . . Worker 1 | . . . . . . 1 . . . . Hauler 3 | . . . . . 1 2 . . . . Operator 1 | . . . . . . 1 . . . . Watcher 1 | . . . . . . 1 . . . . Swarmer 19 | . . . . . 2 6 4 6 . 1 Grunt 3 | . . . . . . 3 . . . . Best Kill Streak 8 | . . . . . 2 8 4 4 . 1 Combat Bots Only 6 | . . . . . 2 6 4 4 . 1 Max Kills in Single Turn 3 | . . . . . 1 3 2 3 . 1 Gunslinging . | . . . . . . . . . . . Exploded 3 | . . . . . 1 2 2 3 . 1 Melee . | . . . . . . . . . . . Uniques/NPCs Destroyed . | . . . . . . . . . . . Combat | -11 -10 -10 -9 -9 -8 -7 -7 -7 -7 -6 -------- Run | Jun Mat Min Mat Min Mat Fac Low Low Dat Pro Damage Taken 2320 | . 27 23 225 85 481 671 80 180 . 548 Core 1526 | . 27 23 225 85 465 185 29 26 . 461 Absorbed by Shields . | . . . . . . . . . . . Redirected to Shielding 52 | . . . . . . . 6 6 . 40 Core Remaining (%) 54 | 100 . 80 . 22 15 . . . . . Volleys Fired 17 | . . . . . 2 8 2 4 . 1 Largest 1 | . . . . . 1 1 1 1 . 1 Hottest 36 | . . . . . 36 36 36 36 . 36 Shots Fired 17 | . . . . . 2 8 2 4 . 1 Gun . | . . . . . . . . . . . Cannon . | . . . . . . . . . . . Launcher 17 | . . . . . 2 8 2 4 . 1 Special . | . . . . . . . . . . . Kinetic . | . . . . . . . . . . . Thermal . | . . . . . . . . . . . Explosive 17 | . . . . . 2 8 2 4 . 1 Electromagnetic . | . . . . . . . . . . . Robot Hit Streak 8 | . . . . . 1 6 8 1 . . Robot Miss Streak 1 | . . . . . . . . 1 . 1 Penetration Max . | . . . . . . . . . . . Secondary Targets . | . . . . . . . . . . . Shots Hit Robots 18 | . . . . . 2 7 2 1 . 6 Core Hits 36 | . . . . 2 2 20 3 7 . 2 Critical Kills . | . . . . . . . . . . . Critical Parts Destroyed 2 | . . . . . 1 . . . . 1 Critical Strikes 2 | . . . . . 1 . . . . 1 Smash 2 | . . . . . 1 . . . . 1 Melee Attacks 10 | . . . . . 1 2 1 . . 6 Impact 10 | . . . . . 1 2 1 . . 6 Slashing . | . . . . . . . . . . . Piercing . | . . . . . . . . . . . Sneak Attacks 3 | . . . . . 1 2 . . . . Combat Hostiles . | . . . . . . . . . . . Follow-up Attacks . | . . . . . . . . . . . Damage Inflicted 3098 | . . . . 12 209 1715 373 356 . 433 Guns . | . . . . . . . . . . . Cannons . | . . . . . . . . . . . Explosions 2429 | . . . . . 118 1525 373 356 . 57 Melee 606 | . . . . . 62 168 . . . 376 Ramming 63 | . . . . 12 29 22 . . . . Kinetic . | . . . . . . . . . . . Thermal . | . . . . . . . . . . . Explosive 2429 | . . . . . 118 1525 373 356 . 57 Electromagnetic . | . . . . . . . . . . . Impact 606 | . . . . . 62 168 . . . 376 Slashing . | . . . . . . . . . . . Piercing . | . . . . . . . . . . . Highest Corruption 2 | . . . . . . 2 2 2 2 2 Average Corruption 2 | . . . . . . 2 2 2 2 2 Corruption Purged . | . . . . . . . . . . . Corruption Blocked . | . . . . . . . . . . . Effects 9 | . . . . . . 2 3 3 . 1 Message Errors 5 | . . . . . . 1 . 3 . 1 Matter Fused 2 | . . . . . . . 2 . . . Data Loss (minor) 2 | . . . . . . 1 1 . . . Overload Shots . | . . . . . . . . . . . Overflow Damage 445 | . . . . . 62 203 23 11 . 146 Projectiles . | . . . . . . . . . . . Explosions 127 | . . . . . . 85 23 11 . 8 Melee 318 | . . . . . 62 118 . . . 138 Knockbacks 2 | . . . . . . . . . . 2 Impact 2 | . . . . . . . . . . 2 Kinetic . | . . . . . . . . . . . Secondary . | . . . . . . . . . . . Self-Inflicted Damage 62 | . . . . 5 13 9 . . . 35 Shots 1 | . . . . . . . . . . 1 Rammed 16 | . . . . 4 8 4 . . . . Targets Rammed 16 | . . . . 4 8 4 . . . . Kicked . | . . . . . . . . . . . Crushed . | . . . . . . . . . . . Highest Temperature 173 | . . . . . . 173 . . . . Average Temperature 75 | . . . . . . 75 . . . . Received Heat Transfer 594 | . 15 . 51 42 135 249 18 24 . 60 Siege Activations . | . . . . . . . . . . . Robots Corrupted . | . . . . . . . . . . . Combat Hostiles . | . . . . . . . . . . . Parts Fried 2 | . . . . . . 2 . . . . Impact Corruptions 12 | . . . . . 1 3 . . . 8 Robots Melted . | . . . . . . . . . . . Combat Hostiles . | . . . . . . . . . . . Parts Melted . | . . . . . . . . . . . Heat Transferred . | . . . . . . . . . . . Parts Sabotaged . | . . . . . . . . . . . Parts Stolen . | . . . . . . . . . . . Parts Stripped . | . . . . . . . . . . . Power Chain Reactions . | . . . . . . . . . . . Missiles Intercepted . | . . . . . . . . . . . Alert | -11 -10 -10 -9 -9 -8 -7 -7 -7 -7 -6 ------- Run | Jun Mat Min Mat Min Mat Fac Low Low Dat Pro Peak Influence 779 | . 45 17 74 68 329 779 . . . . Initial 149 | . . 17 6 28 26 149 . . . . Average 275 | . 23 17 41 41 141 428 . . . . Maximum Alert Level 3 | . . . . . 1 3 . . . . Low Security (%) 46 | 100 100 100 100 100 65 17 . . . . Level 1 30 | . . . . . 34 41 . . . . Level 2 6 | . . . . . . 11 . . . . Level 3 16 | . . . . . . 29 . . . . Level 4 . | . . . . . . . . . . . Level 5 . | . . . . . . . . . . . High Security . | . . . . . . . . . . . Max Security . | . . . . . . . . . . . Squads Dispatched 10 | . 1 . 2 . 1 6 . . . . Investigation 7 | . 1 . 2 . . 4 . . . . Extermination . | . . . . . . . . . . . Reinforcement 3 | . . . . . 1 2 . . . . Assault . | . . . . . . . . . . . Garrison . | . . . . . . . . . . . Intercept . | . . . . . . . . . . . Searches Triggered . | . . . . . . . . . . . Construction Impeded . | . . . . . . . . . . . Haulers Reinforced . | . . . . . . . . . . . Active Scanning Responses . | . . . . . . . . . . . Cargo Convoy Interrupts . | . . . . . . . . . . . Stealth | -11 -10 -10 -9 -9 -8 -7 -7 -7 -7 -6 --------- Run | Jun Mat Min Mat Min Mat Fac Low Low Dat Pro Distress Signals 5 | . . . 1 . 2 2 . . . . Communications Jammed . | . . . . . . . . . . . Distress Signals . | . . . . . . . . . . . Times Spotted 95 | . 3 3 8 2 21 25 5 7 . 21 Peak Tracking Total 16 | . 3 3 10 2 11 8 4 5 . 16 Tactical Retreats 13 | . . . . 1 3 6 1 1 . 1 Traps | -11 -10 -10 -9 -9 -8 -7 -7 -7 -7 -6 ------- Run | Jun Mat Min Mat Min Mat Fac Low Low Dat Pro Traps Triggered . | . . . . . . . . . . . Indirectly . | . . . . . . . . . . . Trap Hack Attempts . | . . . . . . . . . . . Triggered . | . . . . . . . . . . . Disarmed . | . . . . . . . . . . . Reprogrammed . | . . . . . . . . . . . Reused . | . . . . . . . . . . . Traps Extracted . | . . . . . . . . . . . Installed . | . . . . . . . . . . . Triggered 1 | . . . . 1 . . . . . . Machines | -11 -10 -10 -9 -9 -8 -7 -7 -7 -7 -6 ---------- Run | Jun Mat Min Mat Min Mat Fac Low Low Dat Pro Machines Disabled 7 | . . . . . . 6 1 . . . Max in Single Turn 5 | . . . . . . 5 1 . . . Machines Repaired . | . . . . . . . . . . . Machines Sabotaged . | . . . . . . . . . . . Overloaded Fab Kills . | . . . . . . . . . . . Hacking | -11 -10 -10 -9 -9 -8 -7 -7 -7 -7 -6 --------- Run | Jun Mat Min Mat Min Mat Fac Low Low Dat Pro Machines Accessed 16 | . 1 . 2 . 1 7 1 1 3 . Terminals 8 | . . . 2 . 1 4 1 . . . Fabricators 1 | . . . . . . 1 . . . . Repair Stations . | . . . . . . . . . . . Recycling Units 3 | . 1 . . . . 2 . . . . Scanalyzers . | . . . . . . . . . . . Garrison Access . | . . . . . . . . . . . Total Hacks 58 | . 1 . 8 . 2 25 1 1 20 . Successful 38 | . 1 . 1 . 1 13 1 1 20 . Failed 20 | . . . 7 . 1 12 . . . . Catastrophic 8 | . . . 4 . 1 3 . . . . Database Lockouts . | . . . . . . . . . . . Manual 24 | . 2 . 8 . 2 12 . . . . Terminals 22 | . . . 8 . 2 11 1 . . . Fabricators 12 | . . . . . . 12 . . . . Repair Stations . | . . . . . . . . . . . Recycling Units 3 | . 1 . . . . 2 . . . . Scanalyzers . | . . . . . . . . . . . Garrison Access . | . . . . . . . . . . . Terminal Hacks 25 | . . . 1 . 1 1 1 1 20 . Record 3 | . . . . . . . 1 . 2 . Part Schematic 10 | . . . . . . . . . 10 . Robot Schematic 5 | . . . . . . . . . 5 . Prototype ID Bank 3 | . . . . . . . . . 3 . Open Door 1 | . . . . . . . . 1 . . Branch Access Points 3 | . . . 1 . 1 1 . . . . Fabricator Hacks 9 | . . . . . . 9 . . . . Network Status 9 | . . . . . . 9 . . . . Repair Station Hacks . | . . . . . . . . . . . Recycling Unit Hacks . | . . . . . . . . . . . Scanalyzer . | . . . . . . . . . . . Garrison Access Hacks . | . . . . . . . . . . . Unauthorized Hacks 4 | . 1 . . . . 3 . . . . Terminals 1 | . . . . . . 1 . . . . Assimilate 1 | . . . . . . 1 . . . . Fabricators . | . . . . . . . . . . . Repair Stations . | . . . . . . . . . . . Recycling Units 3 | . 1 . . . . 2 . . . . Tunnel 3 | . 1 . . . . 2 . . . . Scanalyzers . | . . . . . . . . . . . Garrison Access . | . . . . . . . . . . . Data Cores Recovered . | . . . . . . . . . . . Used . | . . . . . . . . . . . Hacking Detections 8 | . 1 . 2 . 1 4 . . . . Full Trace Events 4 | . . . 2 . . 2 . . . . Feedback Events . | . . . . . . . . . . . Feedback Blocked . | . . . . . . . . . . . Robot Schematics Acquired 5 | . . . . . . . . . 5 . Robots Built . | . . . . . . . . . . . Authchips . | . . . . . . . . . . . Time . | . . . . . . . . . . . Total Robot Build Rating . | . . . . . . . . . . . Part Schematics Acquired 10 | . . . . . . . . . 10 . Parts Built . | . . . . . . . . . . . Authchips . | . . . . . . . . . . . Time . | . . . . . . . . . . . Total Part Build Rating . | . . . . . . . . . . . Parts Repaired . | . . . . . . . . . . . Time . | . . . . . . . . . . . Parts Recycled . | . . . . . . . . . . . Recycled Matter . | . . . . . . . . . . . Retrieved Matter . | . . . . . . . . . . . Retrieved Components . | . . . . . . . . . . . Parts Scanalyzed . | . . . . . . . . . . . Part Schematics Acquired . | . . . . . . . . . . . Parts Damaged . | . . . . . . . . . . . Bothacking | -11 -10 -10 -9 -9 -8 -7 -7 -7 -7 -6 ------------ Run | Jun Mat Min Mat Min Mat Fac Low Low Dat Pro Used RIF Installer . | . . . . . . . . . . . Robots Hacked . | . . . . . . . . . . . Non-combat . | . . . . . . . . . . . Combat . | . . . . . . . . . . . Robot Hacks Applied . | . . . . . . . . . . . Relay Couplers Released . | . . . . . . . . . . . Fabnet Peak Effective % . | . . . . . . . . . . . Robots Rewired . | . . . . . . . . . . . Allies Hacked . | . . . . . . . . . . . Hacks Repelled . | . . . . . . . . . . . Allies | -11 -10 -10 -9 -9 -8 -7 -7 -7 -7 -6 -------- Run | Jun Mat Min Mat Min Mat Fac Low Low Dat Pro Total Allies 2 | . . . . . . 1 . . . 1 Largest Group 1 | . . . . . . 1 . . . 1 Highest-Rated Group 96 | . . . . . . 26 . . . 96 Highest-Rated Ally 96 | . . . . . . 26 . . . 96 Total Orders . | . . . . . . . . . . . Ally Attacks 9 | . . . . . . . . . . 9 Total Damage 284 | . . . . . . . . . . 284 Kills 2 | . . . . . . . . . . 2 Allies Corrupted . | . . . . . . . . . . . Allies Melted . | . . . . . . . . . . . Intel | -11 -10 -10 -9 -9 -8 -7 -7 -7 -7 -6 ------- Run | Jun Mat Min Mat Min Mat Fac Low Low Dat Pro Robot Analysis Total . | . . . . . . . . . . . Derelict Logs Recovered 2 | . . . . . . . 1 1 . . Drone Launches . | . . . . . . . . . . . Drone Recoveries . | . . . . . . . . . . . Exploration | -11 -10 -10 -9 -9 -8 -7 -7 -7 -7 -6 ------------- Run | Jun Mat Min Mat Min Mat Fac Low Low Dat Pro Turns Passed 1309 | 14 39 12 52 51 172 420 211 162 27 149 Spaces Moved 2436 | 28 78 23 103 93 300 735 400 302 76 298 Core 2073 | 28 78 23 103 93 300 731 400 170 . 147 Treads 4 | . . . . . . 4 . . . . Legs . | . . . . . . . . . . . Wheels . | . . . . . . . . . . . Hover . | . . . . . . . . . . . Flight 359 | . . . . . . . . 132 76 151 Fastest Speed 35 | 50 50 50 50 50 50 50 50 35 35 35 Average Speed 48 | 50 50 50 50 50 50 50 50 44 35 42 Slowest Speed 160 | 50 50 50 50 50 50 160 50 150 35 50 Overloaded Moves . | . . . . . . . . . . . Propulsion Burnouts . | . . . . . . . . . . . Robots Hopped 1 | . . . . . . . . 1 . . Cave-ins Triggered . | . . . . . . . . . . . Exploration Rate (%) 33 | 3 25 10 18 24 35 29 56 42 69 52 Regions Visited 10 Branch Regions 6 Pre-discovered Areas 4 | . 1 . . . . 2 . . 1 . Known Exits Taken 2 | . . . 1 . . 1 . . . . Unknown Exits Taken 8 | 1 1 1 . 1 1 . 1 1 1 . Scrap Searched 4 | . . . . 1 . . 1 2 . . Spaces Dug 21 | . . . . . 11 . . 10 . . Terrain Destroyed 103 | . . . . . 20 30 7 39 . 7 Melee . | . . . . . . . . . . . Projectile . | . . . . . . . . . . . AOE 103 | . . . . . 20 30 7 39 . 7 Terrain Rammed . | . . . . . . . . . . . Walls Destroyed . | . . . . . . . . . . . Machines Disabled . | . . . . . . . . . . . Actions | -11 -10 -10 -9 -9 -8 -7 -7 -7 -7 -6 --------- Run | Jun Mat Min Mat Min Mat Fac Low Low Dat Pro Total 2523 | 27 77 22 102 96 318 765 407 325 75 309 Wait 12 | . . . . . 2 . . 10 . . Move 2424 | 27 77 22 102 92 299 734 399 299 75 298 Hop 1 | . . . . . . . . 1 . . Pick Up 4 | . . . . . 2 1 1 . . . Fast Attach 12 | . . . . . . 9 . 2 . 1 Attach 11 | . . . . . 2 3 2 2 . 2 Detach 10 | . . . . . 2 3 2 2 . 1 Swap . | . . . . . . . . . . . Drop 6 | . . . . . . 1 . 5 . . Fire 17 | . . . . . 2 8 2 4 . 1 Melee 10 | . . . . . 1 2 1 . . 6 Ram 16 | . . . . 4 8 4 . . . . Kick . | . . . . . . . . . . . Crush . | . . . . . . . . . . . Escape Stasis . | . . . . . . . . . . . Rewire . | . . . . . . . . . . . Trap . | . . . . . . . . . . . Miscellaneous . | . . . . . . . . . . . Route ------- -11/Junkyard -10/Materials -10/Mines -9/Materials (discovered 2 exits: *Min x2) -9/Mines -8/Materials -7/Factory (discovered 5 exits: [*Fac] / Sto x2 / *Low x2) -7/Lower Caves -7/Lower Caves -7/Data Miner -6/Proximity Caves History --------- Turn | Location | Event 3 | -11/Junkyard | Discovered new exit (range 15) 15 | -11/Junkyard | Entered Materials 52 | -10/Materials | Discovered new exit (range 5) 54 | -10/Materials | Entered Mines 61 | -10/Mines | Discovered new exit (range 9) 66 | -10/Mines | Entered Materials 66 | -9/Materials | Evolved 2 slots: Propulsion x1, Utility x1 109 | -9/Materials | Identified exit to Mines 112 | -9/Materials | Core integrity fell below 50% 118 | -9/Materials | Entered Mines 126 | -9/Mines | Met a Derelict bent on vengeance 163 | -9/Mines | Discovered new exit (range 6) 169 | -9/Mines | Entered Materials 169 | -8/Materials | Evolved 2 slots: Propulsion x1, Utility x1 255 | -8/Materials | Core integrity fell below 50% 304 | -8/Materials | Build established: Mutant 339 | -8/Materials | Discovered new exit (range 6) 341 | -8/Materials | Entered Factory 341 | -7/Factory | Evolved 2 slots: Propulsion x1, Utility x1 715 | -7/Factory | Identified exit to Storage 715 | -7/Factory | Identified exit to Lower Caves 747 | -7/Factory | Discovered new exit (range 15) 761 | -7/Factory | Entered Lower Caves 863 | -7/Lower Caves | Attracted the attention of an 0b10 checkpoint 892 | -7/Lower Caves | Build established: Hacker-Mutant 902 | -7/Lower Caves | Learned Factory emergency access door positions 957 | -7/Lower Caves | Discovered new exit (range 6) 972 | -7/Lower Caves | Entered another Lower Caves area 983 | -7/Lower Caves | Learned Factory interactive machine intel 1046 | -7/Lower Caves | Attracted the attention of an 0b10 checkpoint 1099 | -7/Lower Caves | Encountered a Warlord checkpoint 1132 | -7/Lower Caves | Discovered new exit (range 4) 1134 | -7/Lower Caves | Entered Data Miner 1134 | -7/Data Miner | Discovered new exit (range 6) 1141 | -7/Data Miner | Met Data Miner 1150 | -7/Data Miner | Learned location of Section 7 (-2) 1150 | -7/Data Miner | Acquired the access code to Warlord's prototype stash 1153 | -7/Data Miner | Received God Mode back door access code from Data Miner 1161 | -7/Data Miner | Entered Proximity Caves 1170 | -6/Proximity Caves | Escorted by Enhanced Grunt 1245 | -6/Proximity Caves | Spotted B-75 Beast 1246 | -6/Proximity Caves | Core integrity fell below 50% 1307 | -6/Proximity Caves | Attracted the attention of an 0b10 checkpoint 1308 | -6/Proximity Caves | Core integrity fell below 20% 1310 | -6/Proximity Caves | Destroyed by S-27 Virus with Autogun Last Messages --------------- 01218_ Destroyed Mace. 01218_ Destroyed Imp. Light Armor Plating. 01218_ B-48 Gladiator system corrupted by crushing effect. 01219_ B-48 Gladiator system terminally corrupted. 01221_ Sneak attack on 9B-NRK(b). 01221_ Destroyed Lgt. Treads. 01221_ Destroyed Hrd. Light Armor Plating. 01221_ 9B-NRK(b) system corrupted by crushing effect. 01221_ 9B-NRK(b) knocked back. 01222_ 9B-NRK(b) system terminally corrupted. 01224_ Acquired 56 matter. 01225_ Acquired 46 matter. 01226_ Sneak attack on VB-D9S(l). 01226_ Destroyed Carbon-fiber Leg. 01226_ VB-D9S(l) system corrupted by crushing effect. 01226_ VB-D9S(l) destroyed. 01234_ X0RHU%CDZ 01245_ VTOL Module destroyed. 01282_ Core Shielding destroyed. 01307_ Y-54 Guardian: "INTERCEPTING UNREGISTERED DERELICT." Map ----- +----------------------------------------------------+ | ???????# ##?## ##????????????????????????? | | ???????# ### #?????????????????????????? | | ???????# #?????????????????????????? | | ???????# #?????????????????????????? | | ???????# #####?????????????????????????? | | ???????# ###?????????????????????????????? | | ###+#### #???????????????????????????????? | | #???????????????????????????????? | | ##???##??????????????????????????? | | ### ##???# #?????????????????????????? | | ## #####????# ?????????????????????????? | | ##??????## ##???????????????????????? | | #???#??# #???????????????????????? | | #### #??? ##? ???????????????????????? | | ????# #??? ## ???????????????????????? | | ???????# ###???? ## ????????????????????????? | | ???????# ##????? ????????????????????????? | | ??????## ##??## ???????????#????????????? | | ?????## #?## ## #???##????? #????????????? | | ???### ### ## #??# #??? #????????????? | | ???# $ # #?# #?? #????????????? | | ???# # ## ## #????????????? | | ???# ## ## s ### ?????????? | | ??# ##### ### ## ????????? | | ??# #????# s n ????????? | | ?# ###?????# s @ Y #?????????????? | | ????????# ####### g #????????????? | | ?????????# ##?????# #????????????? | | ??????????## ##??????## # ##????????????? | | ???????????# ##????????## ###??#?????????????? | | ????????????# #??????????? ?????????????????? | | ????????????# #??????????? #????????????????? | | ???????????? #??????????? #????????????????? | | ????????????###??????????? ???????????????? | | ?????????????????????????? ???????????????? | | ?????????????????????????? ??????????????? | | ?????????????????????????? ## ?????????????? | | ???????????????????????????####?###??????????????? | | ?????????????????????????????????????????????????? | | ?????????????????????????????????????????????????? | | ?????????????????????????????????????????????????? | | ?????????????????????????????????????????????????? | | ?????????????????????????????????????????????????? | | ?????????????????????????????????????????????????? | | ?????????????????????????????????????????????????? | | ?????????????????????????????????????????????????? | | ?????????????????????????????????????????????????? | | ?????????????????????????????????????????????????? | | ?????????????????????????????????????????????????? | | ?????????????????????????????????????????????????? | +----------------------------------------------------+ Best States ------------- Heat Dissipation 34 Energy Generation 5 Energy Capacity 100 Matter Stores 300 Matter Capacity 300 Sight Range 16 Terrain Scan Density 10 Core Shielding 20 Evasion (%) 63 Core Analysis 6 Recoil Reduction 3 Offensive Hacking 10 Defensive Hacking 10 Item Schematics ----------------- Combat Drone Bay | -7/Data Miner | Free Biomechanical Wings | -7/Data Miner | Free Thermal Defense Suite | -7/Data Miner | Free Force Rifle | -7/Data Miner | Free Arm. Medium Treads | -7/Data Miner | Free Lgt. Regenerative Plating | -7/Data Miner | Free Imp. Reaction Control System | -7/Data Miner | Free Imp. Remote Datajack | -7/Data Miner | Free Imp. Transmission Jammer | -7/Data Miner | Free Imp. Fusion Compressor | -7/Data Miner | Free Robot Schematics ------------------ R-10 Processor | -7/Data Miner | Free M-14 Sweeper | -7/Data Miner | Free X-67 Chaingunner | -7/Data Miner | Free S-27 Virus | -7/Data Miner | Free B-60 Warrior | -7/Data Miner | Free Fabricated ------------ Nothing Alien Tech Used ----------------- None Achievements -------------- None Challenges ------------ None Game ------ Seed ArmorGuidedGenerator Manual? 0 Play Time 00:15:29 Cumulative 245.6 hours Start 2023.05.28 @ 13:57:50 End 2023.05.28 @ 14:12:36 Sessions 1 Manual Loads 0 Difficulty Rogue Special Mode None Game No. 733 Rogue 733 Adventurer 0 Explorer 0 Win Type - Total 12 Types 8/0/2/2/0/0/0/0/0 Lore% 87 Gallery% 83 Achievement% 74 Wizard Run 0 Options --------- ASCII 0 Keyboard 0 Movement Numpad Keybinds 0 Fullscreen 1 Font 16/SmallcapsGlow Map View 75x55 Tactical HUD 1 Map Filters NONE Filters NONE Steam 1 RUN: 67b5f808-fd84-4ed7-9cf9-60c1442ed8ea